[Event "*** Titled Tuesday Blitz"]
[Site "Chess.com"]
[Date "2021.03.16"]
[Round "8"]
[White "KyrgyzFighter"]
[Black "SF-96"]
[Result "0-1"]
[WhiteElo "2423"]
[BlackElo "2594"]
[TimeControl "180+1"]
[EndTime "11:29:05 PDT"]
[Termination "SF-96 won on time"]

1. c4 {[%clk 0:03:00.9]} 1... Nf6 {[%clk 0:03:00.1]} 2. Nc3 {[%clk 0:03:00.7]}
2... d5 {[%clk 0:03:00.2]} 3. d4 {[%clk 0:03:00.5]} 3... g6 {[%clk 0:02:59.8]}
4. e3 {[%clk 0:03:00.4]} 4... Bg7 {[%clk 0:03:00]} 5. Nf3 {[%clk 0:03:00.8]}
5... O-O {[%clk 0:02:59.6]} 6. Qb3 {[%clk 0:03:01.4]} 6... dxc4 {[%clk
0:02:52.7]} 7. Bxc4 {[%clk 0:03:02.3]} 7... c5 {[%clk 0:02:44.2]} 8. O-O {[%clk
0:02:50.3]} 8... cxd4 {[%clk 0:02:27.1]} 9. exd4 {[%clk 0:02:48.9]} 9... Nc6
{[%clk 0:02:26.4]} 10. Ne5 {[%clk 0:02:40.8]} 10... Nxe5 {[%clk 0:01:40.4]} 11.
dxe5 {[%clk 0:02:39.3]} 11... Ng4 {[%clk 0:01:41.1]} 12. e6 {[%clk 0:02:20.3]}
12... fxe6 {[%clk 0:01:40.5]} 13. Bxe6+ {[%clk 0:02:18.5]} 13... Kh8 {[%clk
0:01:40.7]} 14. Bxg4 {[%clk 0:02:09]} 14... Bxg4 {[%clk 0:01:40.4]} 15. Bg5
{[%clk 0:01:55.4]} 15... Qd7 {[%clk 0:01:18.1]} 16. Rae1 {[%clk 0:01:23.3]}
16... Rae8 {[%clk 0:01:11.8]} 17. Qa3 {[%clk 0:01:10.3]} 17... Qd3 {[%clk
0:00:31.5]} 18. Rxe7 {[%clk 0:00:45.2]} 18... Rxe7 {[%clk 0:00:26.6]} 19. Qxe7
{[%clk 0:00:44.9]} 19... h6 {[%clk 0:00:19.4]} 20. Be3 {[%clk 0:00:37.9]} 20...
b5 {[%clk 0:00:14.7]} 21. h3 {[%clk 0:00:32.9]} 21... Bf5 {[%clk 0:00:11.4]} 22.
Rd1 {[%clk 0:00:23.3]} 22... Qc2 {[%clk 0:00:11.5]} 23. Bd4 {[%clk 0:00:18.9]}
23... Rg8 {[%clk 0:00:06]} 24. Bxg7+ {[%clk 0:00:12.5]} 24... Rxg7 {[%clk
0:00:06.9]} 25. Rd8+ {[%clk 0:00:12.6]} 25... Kh7 {[%clk 0:00:07.5]} 26. Qe8
{[%clk 0:00:08.2]} 26... Qc1+ {[%clk 0:00:07.3]} 27. Nd1 {[%clk 0:00:08.7]}
27... g5 {[%clk 0:00:04.2]} 28. Qh8+ {[%clk 0:00:07.9]} 28... Kg6 {[%clk
0:00:04.8]} 29. Rd6+ {[%clk 0:00:08.2]} 29... Kf7 {[%clk 0:00:05.2]} 30. Qd8
{[%clk 0:00:07.4]} 30... Be6 {[%clk 0:00:03.2]} 31. Rd3 {[%clk 0:00:03.4]} 31...
Kg6 {[%clk 0:00:02.6]} 32. Rf3 {[%clk 0:00:02.5]} 32... Rf7 {[%clk 0:00:01.6]}
33. Qd3+ {[%clk 0:00:02.9]} 33... Kg7 {[%clk 0:00:01.6]} 34. Qc3+ {[%clk
0:00:02.4]} 34... Kg6 {[%clk 0:00:01.9]} 35. Rxf7 {[%clk 0:00:03]} 35... Qxd1+
{[%clk 0:00:01.5]} 36. Kh2 {[%clk 0:00:03.3]} 36... Bxf7 {[%clk 0:00:02.4]} 37.
Qc6+ {[%clk 0:00:02.5]} 37... Kg7 {[%clk 0:00:03]} 38. Qxb5 {[%clk 0:00:02.9]}
38... Qd6+ {[%clk 0:00:02.7]} 39. g3 {[%clk 0:00:03.5]} 39... Qf6 {[%clk
0:00:03.6]} 40. Qe2 {[%clk 0:00:03]} 40... h5 {[%clk 0:00:04.2]} 41. h4 {[%clk
0:00:03]} 41... gxh4 {[%clk 0:00:04.5]} 42. b4 {[%clk 0:00:02]} 42... hxg3+
{[%clk 0:00:04.5]} 43. fxg3 {[%clk 0:00:02.9]} 43... Bd5 {[%clk 0:00:05.2]} 44.
a4 {[%clk 0:00:03.2]} 44... h4 {[%clk 0:00:04.5]} 45. Qg4+ {[%clk 0:00:02.2]}
45... Qg6 {[%clk 0:00:04.1]} 46. Qd7+ {[%clk 0:00:01.9]} 46... Bf7 {[%clk
0:00:04.4]} 47. Qd4+ {[%clk 0:00:02.4]} 47... Qf6 {[%clk 0:00:04.3]} 48. Qg4+
{[%clk 0:00:02.9]} 48... Bg6 {[%clk 0:00:04.4]} 49. Qd7+ {[%clk 0:00:03]} 49...
Kh6 {[%clk 0:00:04.4]} 50. Qd2+ {[%clk 0:00:03.5]} 50... Kh5 {[%clk 0:00:04]}
51. Qd5+ {[%clk 0:00:02.4]} 51... Bf5 {[%clk 0:00:03.6]} 52. Qf3+ {[%clk
0:00:01.9]} 52... Kg6 {[%clk 0:00:04.2]} 53. g4 {[%clk 0:00:01.5]} 53... Qe5+
{[%clk 0:00:04.1]} 54. Kh3 {[%clk 0:00:01.7]} 54... Be4 {[%clk 0:00:04.7]} 55.
Qe3 {[%clk 0:00:01.2]} 55... Bg2+ {[%clk 0:00:04.2]} 56. Kxg2 {[%clk 0:00:01.2]}
56... Qxe3 {[%clk 0:00:05.1]} 0-1

[Event "*** Titled Tuesday Blitz"]
[Site "Chess.com"]
[Date "2021.03.16"]
[Round "8"]
[White "frequentblunders"]
[Black "chesslh19"]
[Result "1/2-1/2"]
[WhiteElo "2078"]
[BlackElo "2251"]
[TimeControl "180+1"]
[EndTime "11:29:07 PDT"]
[Termination "Game drawn by stalemate"]

1. d3 {[%clk 0:02:59.7]} 1... d5 {[%clk 0:02:56.2]} 2. f4 {[%clk 0:03:00.6]}
2... Nf6 {[%clk 0:02:49.5]} 3. Nf3 {[%clk 0:03:01.5]} 3... c5 {[%clk 0:02:42.6]}
4. g3 {[%clk 0:03:02.4]} 4... g6 {[%clk 0:02:25.6]} 5. Bg2 {[%clk 0:03:03.3]}
5... Bg7 {[%clk 0:02:25.9]} 6. O-O {[%clk 0:03:02.6]} 6... O-O {[%clk
0:02:14.4]} 7. Nc3 {[%clk 0:03:02.1]} 7... d4 {[%clk 0:02:05.4]} 8. Ne4 {[%clk
0:03:01.7]} 8... Nxe4 {[%clk 0:01:55]} 9. dxe4 {[%clk 0:03:02.6]} 9... Nc6
{[%clk 0:01:52.3]} 10. e3 {[%clk 0:02:55.5]} 10... Bg4 {[%clk 0:01:44.1]} 11. h3
{[%clk 0:02:51.2]} 11... Bxf3 {[%clk 0:01:42.8]} 12. Qxf3 {[%clk 0:02:52.1]}
12... dxe3 {[%clk 0:01:43]} 13. c3 {[%clk 0:02:51.1]} 13... Qb6 {[%clk
0:01:21.1]} 14. Qxe3 {[%clk 0:02:46.2]} 14... Rad8 {[%clk 0:00:48.8]} 15. Kh2
{[%clk 0:02:34.4]} 15... c4 {[%clk 0:00:47.5]} 16. Qxb6 {[%clk 0:02:31.1]} 16...
axb6 {[%clk 0:00:47.5]} 17. Be3 {[%clk 0:02:31.1]} 17... b5 {[%clk 0:00:45.1]}
18. Rfd1 {[%clk 0:02:18.9]} 18... Rxd1 {[%clk 0:00:39.6]} 19. Rxd1 {[%clk
0:02:18.4]} 19... Rd8 {[%clk 0:00:40.5]} 20. Rxd8+ {[%clk 0:02:12.2]} 20... Nxd8
{[%clk 0:00:41.4]} 21. Bc5 {[%clk 0:02:07.5]} 21... Nc6 {[%clk 0:00:40.4]} 22.
e5 {[%clk 0:02:04.8]} 22... e6 {[%clk 0:00:21.3]} 23. Kg1 {[%clk 0:01:25.5]}
23... f6 {[%clk 0:00:20.7]} 24. exf6 {[%clk 0:01:09.2]} 24... Bxf6 {[%clk
0:00:21.6]} 25. Kf2 {[%clk 0:01:08.9]} 25... Kf7 {[%clk 0:00:21.8]} 26. Ke3
{[%clk 0:01:07.2]} 26... Ke8 {[%clk 0:00:19.7]} 27. h4 {[%clk 0:00:50.1]} 27...
Kd7 {[%clk 0:00:19.5]} 28. Ke4 {[%clk 0:00:45.5]} 28... Kc7 {[%clk 0:00:16.8]}
29. Bh3 {[%clk 0:00:44.6]} 29... Kd7 {[%clk 0:00:16.4]} 30. a3 {[%clk
0:00:37.1]} 30... Ne7 {[%clk 0:00:13.9]} 31. Bxe7 {[%clk 0:00:33.5]} 31... Kxe7
{[%clk 0:00:12.5]} 32. h5 {[%clk 0:00:34]} 32... Kd6 {[%clk 0:00:11.1]} 33. h6
{[%clk 0:00:30.3]} 33... Be7 {[%clk 0:00:10.3]} 34. g4 {[%clk 0:00:29.9]} 34...
g5 {[%clk 0:00:09.2]} 35. f5 {[%clk 0:00:28.8]} 35... e5 {[%clk 0:00:06.5]} 36.
Bg2 {[%clk 0:00:24.1]} 36... Bf8 {[%clk 0:00:06.4]} 37. f6 {[%clk 0:00:21.1]}
37... Ke6 {[%clk 0:00:06.8]} 38. Ke3 {[%clk 0:00:16.3]} 38... b6 {[%clk
0:00:06.6]} 39. Bc6 {[%clk 0:00:14.5]} 39... Bxh6 {[%clk 0:00:06]} 40. Bxb5
{[%clk 0:00:14.2]} 40... Kxf6 {[%clk 0:00:05.6]} 41. Bxc4 {[%clk 0:00:13.1]}
41... Bf8 {[%clk 0:00:06.1]} 42. Ke4 {[%clk 0:00:12.5]} 42... Bc5 {[%clk
0:00:04.4]} 43. Kd5 {[%clk 0:00:12.5]} 43... Be3 {[%clk 0:00:04.4]} 44. Kc6
{[%clk 0:00:11.8]} 44... Bc1 {[%clk 0:00:04.3]} 45. b4 {[%clk 0:00:10.5]} 45...
Bxa3 {[%clk 0:00:03.9]} 46. Kxb6 {[%clk 0:00:10.3]} 46... Bb2 {[%clk 0:00:04.4]}
47. b5 {[%clk 0:00:10.1]} 47... Bxc3 {[%clk 0:00:04.5]} 48. Bd3 {[%clk 0:00:11]}
48... h5 {[%clk 0:00:03.1]} 49. gxh5 {[%clk 0:00:10.9]} 49... Bd4+ {[%clk
0:00:03.1]} 50. Kc6 {[%clk 0:00:10.8]} 50... Kg7 {[%clk 0:00:02.2]} 51. b6
{[%clk 0:00:10.7]} 51... Bxb6 {[%clk 0:00:02.4]} 52. Kxb6 {[%clk 0:00:11.6]}
52... Kh6 {[%clk 0:00:02.5]} 53. Be2 {[%clk 0:00:09.7]} 53... e4 {[%clk
0:00:01.6]} 54. Kc5 {[%clk 0:00:09.9]} 54... g4 {[%clk 0:00:01.5]} 55. Bxg4
{[%clk 0:00:08.6]} 55... Kg7 {[%clk 0:00:02.1]} 56. Be2 {[%clk 0:00:08.9]} 56...
Kh8 {[%clk 0:00:02]} 57. Kd4 {[%clk 0:00:09.8]} 57... e3 {[%clk 0:00:02.4]} 58.
Kxe3 {[%clk 0:00:10.6]} 58... Kg7 {[%clk 0:00:03.2]} 59. Kf4 {[%clk 0:00:11]}
59... Kh8 {[%clk 0:00:04.1]} 60. Kg5 {[%clk 0:00:11.7]} 60... Kg7 {[%clk
0:00:05]} 61. Bd3 {[%clk 0:00:11.6]} 61... Kh8 {[%clk 0:00:05.9]} 62. h6 {[%clk
0:00:11.7]} 62... Kg8 {[%clk 0:00:06]} 63. Kf6 {[%clk 0:00:12]} 63... Kh8 {[%clk
0:00:06.9]} 64. h7 {[%clk 0:00:08.4]} 1/2-1/2

[Event "*** Titled Tuesday Blitz"]
[Site "Chess.com"]
[Date "2021.03.16"]
[Round "8"]
[White "AttackSparrow"]
[Black "Dyadya81"]
[Result "0-1"]
[WhiteElo "2512"]
[BlackElo "2734"]
[TimeControl "180+1"]
[EndTime "11:29:17 PDT"]
[Termination "Dyadya81 won by checkmate"]

1. e4 {[%clk 0:03:00.9]} 1... c6 {[%clk 0:03:00]} 2. d4 {[%clk 0:03:00.4]} 2...
d5 {[%clk 0:03:00.9]} 3. exd5 {[%clk 0:03:01.3]} 3... cxd5 {[%clk 0:03:01.5]} 4.
c4 {[%clk 0:03:01.5]} 4... Nf6 {[%clk 0:03:01.6]} 5. Nc3 {[%clk 0:03:01.9]} 5...
Nc6 {[%clk 0:03:02.2]} 6. Bg5 {[%clk 0:03:01.3]} 6... Ne4 {[%clk 0:02:59.9]} 7.
Nf3 {[%clk 0:02:43.6]} 7... Nxg5 {[%clk 0:02:49.3]} 8. Nxg5 {[%clk 0:02:44.5]}
8... e6 {[%clk 0:02:49.9]} 9. Nf3 {[%clk 0:02:35.3]} 9... Bb4 {[%clk 0:02:49.8]}
10. Qc2 {[%clk 0:02:25.1]} 10... O-O {[%clk 0:02:41.7]} 11. O-O-O {[%clk
0:02:14.9]} 11... Qa5 {[%clk 0:02:35.5]} 12. a3 {[%clk 0:02:12.1]} 12... Bxc3
{[%clk 0:02:30.1]} 13. Qxc3 {[%clk 0:02:13]} 13... Qxc3+ {[%clk 0:02:28.6]} 14.
bxc3 {[%clk 0:02:13.9]} 14... Na5 {[%clk 0:02:14.6]} 15. cxd5 {[%clk 0:02:02.1]}
15... exd5 {[%clk 0:02:14.7]} 16. Bd3 {[%clk 0:01:58.8]} 16... Bg4 {[%clk
0:02:10.8]} 17. Rde1 {[%clk 0:01:52.6]} 17... Rac8 {[%clk 0:02:04.7]} 18. Ne5
{[%clk 0:01:49.9]} 18... Be6 {[%clk 0:01:56]} 19. Kb2 {[%clk 0:01:48]} 19... f6
{[%clk 0:01:50.9]} 20. Ng6 {[%clk 0:01:43.2]} 20... Rfe8 {[%clk 0:01:41.5]} 21.
Nf4 {[%clk 0:01:42.6]} 21... Bf7 {[%clk 0:01:40.1]} 22. Bb5 {[%clk 0:01:40.4]}
22... Re4 {[%clk 0:01:33.5]} 23. Rxe4 {[%clk 0:01:23]} 23... dxe4 {[%clk
0:01:32.3]} 24. Re1 {[%clk 0:01:22.7]} 24... a6 {[%clk 0:01:31.4]} 25. Bd7
{[%clk 0:01:00.6]} 25... Nc4+ {[%clk 0:01:25.3]} 26. Ka2 {[%clk 0:00:44.9]}
26... Nb6+ {[%clk 0:01:02.4]} 27. Be6 {[%clk 0:00:45.1]} 27... g5 {[%clk
0:01:00.6]} 28. Bxf7+ {[%clk 0:00:39]} 28... Kxf7 {[%clk 0:01:01.5]} 29. Ne2
{[%clk 0:00:37.1]} 29... f5 {[%clk 0:00:56.6]} 30. Kb3 {[%clk 0:00:36.6]} 30...
Nc4 {[%clk 0:00:55.6]} 31. Ng3 {[%clk 0:00:33.5]} 31... Kf6 {[%clk 0:00:51.6]}
32. Nh5+ {[%clk 0:00:33.5]} 32... Kg6 {[%clk 0:00:51.8]} 33. Ng3 {[%clk
0:00:34.4]} 33... h5 {[%clk 0:00:49.6]} 34. Ne2 {[%clk 0:00:32.7]} 34... b5
{[%clk 0:00:46.4]} 35. Rd1 {[%clk 0:00:32.5]} 35... Kf6 {[%clk 0:00:36.7]} 36.
Nc1 {[%clk 0:00:31.4]} 36... Na5+ {[%clk 0:00:30.3]} 37. Kb2 {[%clk 0:00:30.7]}
37... Nc4+ {[%clk 0:00:27.7]} 38. Kb3 {[%clk 0:00:30.7]} 38... f4 {[%clk
0:00:26.2]} 39. Na2 {[%clk 0:00:28.6]} 39... e3 {[%clk 0:00:25.7]} 40. fxe3
{[%clk 0:00:27]} 40... Nxe3 {[%clk 0:00:26.6]} 41. Rd2 {[%clk 0:00:26.2]} 41...
g4 {[%clk 0:00:21.6]} 42. Nb4 {[%clk 0:00:25]} 42... a5 {[%clk 0:00:21.4]} 43.
Nd3 {[%clk 0:00:25.9]} 43... a4+ {[%clk 0:00:20.9]} 44. Ka2 {[%clk 0:00:26]}
44... Kg5 {[%clk 0:00:18]} 45. Nc5 {[%clk 0:00:26.1]} 45... f3 {[%clk 0:00:13]}
46. gxf3 {[%clk 0:00:27]} 46... gxf3 {[%clk 0:00:13.9]} 47. Rf2 {[%clk 0:00:27]}
47... Kf4 {[%clk 0:00:14.5]} 48. Rd2 {[%clk 0:00:26.2]} 48... Nd5 {[%clk
0:00:13.6]} 49. Kb2 {[%clk 0:00:25.2]} 49... Ke3 {[%clk 0:00:13.9]} 50. Kc2
{[%clk 0:00:20.2]} 50... f2 {[%clk 0:00:12.9]} 51. Rd3+ {[%clk 0:00:20.7]} 51...
Ke2 {[%clk 0:00:12.1]} 52. Rd2+ {[%clk 0:00:20.9]} 52... Kf3 {[%clk 0:00:12.6]}
53. Rxf2+ {[%clk 0:00:17.9]} 53... Kxf2 {[%clk 0:00:12.6]} 54. Kd3 {[%clk
0:00:18.3]} 54... Kg2 {[%clk 0:00:12.3]} 55. c4 {[%clk 0:00:16.6]} 55... bxc4+
{[%clk 0:00:13.2]} 56. Kxc4 {[%clk 0:00:17.5]} 56... Ne3+ {[%clk 0:00:12.3]} 57.
Kd3 {[%clk 0:00:17.5]} 57... Ng4 {[%clk 0:00:11.3]} 58. Nxa4 {[%clk 0:00:17.8]}
58... Kxh2 {[%clk 0:00:11.2]} 59. Nb6 {[%clk 0:00:18.4]} 59... Rb8 {[%clk
0:00:11]} 60. Nd7 {[%clk 0:00:18.2]} 60... Rb3+ {[%clk 0:00:11]} 61. Kc4 {[%clk
0:00:18.8]} 61... Rxa3 {[%clk 0:00:11.3]} 62. d5 {[%clk 0:00:19.7]} 62... Ne3+
{[%clk 0:00:11.1]} 63. Kb4 {[%clk 0:00:19.2]} 63... Rd3 {[%clk 0:00:10]} 64. Ne5
{[%clk 0:00:18.7]} 64... Rxd5 {[%clk 0:00:09.4]} 65. Nf3+ {[%clk 0:00:19.1]}
65... Kg3 {[%clk 0:00:09.8]} 66. Ne1 {[%clk 0:00:19.7]} 66... Rd1 {[%clk
0:00:09]} 67. Nc2 {[%clk 0:00:18.8]} 67... Nxc2+ {[%clk 0:00:08.7]} 68. Kc3
{[%clk 0:00:19.7]} 68... Ne3 {[%clk 0:00:09.6]} 69. Kb2 {[%clk 0:00:20.3]} 69...
h4 {[%clk 0:00:10.5]} 70. Kc3 {[%clk 0:00:21.2]} 70... h3 {[%clk 0:00:11.4]} 71.
Kb2 {[%clk 0:00:22.1]} 71... h2 {[%clk 0:00:12.3]} 72. Kc3 {[%clk 0:00:23]}
72... h1=Q {[%clk 0:00:13.2]} 73. Kb4 {[%clk 0:00:23.9]} 73... Qc6 {[%clk
0:00:13.3]} 74. Ka3 {[%clk 0:00:24.8]} 74... Qb5 {[%clk 0:00:10.8]} 75. Ka2
{[%clk 0:00:25.1]} 75... Rb1 {[%clk 0:00:10.1]} 76. Ka3 {[%clk 0:00:26]} 76...
Qa5# {[%clk 0:00:10.7]} 0-1

[Event "*** Titled Tuesday Blitz"]
[Site "Chess.com"]
[Date "2021.03.16"]
[Round "8"]
[White "Anton_Demchenko"]
[Black "Skatchkov_V"]
[Result "1-0"]
[WhiteElo "2882"]
[BlackElo "2626"]
[TimeControl "180+1"]
[EndTime "11:29:25 PDT"]
[Termination "Anton_Demchenko won by resignation"]

1. d4 {[%clk 0:03:00.9]} 1... Nf6 {[%clk 0:02:59.2]} 2. c4 {[%clk 0:02:59.6]}
2... e6 {[%clk 0:02:59.3]} 3. Nc3 {[%clk 0:02:59.2]} 3... Bb4 {[%clk 0:02:59.3]}
4. Bd2 {[%clk 0:02:59.6]} 4... d5 {[%clk 0:02:57.4]} 5. e3 {[%clk 0:02:55.3]}
5... O-O {[%clk 0:02:57.5]} 6. Nf3 {[%clk 0:02:55.5]} 6... b6 {[%clk 0:02:51.6]}
7. Rc1 {[%clk 0:02:53.9]} 7... Bb7 {[%clk 0:02:50.7]} 8. cxd5 {[%clk 0:02:41]}
8... Nxd5 {[%clk 0:02:46.7]} 9. Bd3 {[%clk 0:02:30.9]} 9... Nd7 {[%clk
0:02:37.3]} 10. e4 {[%clk 0:02:27.9]} 10... Nxc3 {[%clk 0:02:34.1]} 11. bxc3
{[%clk 0:02:27.7]} 11... Ba3 {[%clk 0:02:34.7]} 12. Rb1 {[%clk 0:01:45.2]} 12...
e5 {[%clk 0:02:34.3]} 13. O-O {[%clk 0:01:38.7]} 13... Bd6 {[%clk 0:02:32.8]}
14. Re1 {[%clk 0:01:35.3]} 14... Qf6 {[%clk 0:02:03.1]} 15. Qa4 {[%clk
0:01:29.4]} 15... Qe7 {[%clk 0:01:32.8]} 16. Bb5 {[%clk 0:01:28.5]} 16... Nf6
{[%clk 0:01:22.5]} 17. Bc6 {[%clk 0:01:23.4]} 17... Bxc6 {[%clk 0:01:18.5]} 18.
Qxc6 {[%clk 0:01:24.3]} 18... Qd7 {[%clk 0:01:19.4]} 19. Qc4 {[%clk 0:01:22.6]}
19... Rfe8 {[%clk 0:01:16]} 20. Bg5 {[%clk 0:01:22.7]} 20... Nh5 {[%clk
0:00:20.3]} 21. Rbd1 {[%clk 0:01:13.4]} 21... Qe6 {[%clk 0:00:05.5]} 22. Qa6
{[%clk 0:01:09.6]} 22... Qg6 {[%clk 0:00:04.3]} 23. Bc1 {[%clk 0:00:46.5]} 23...
exd4 {[%clk 0:00:04.3]} 24. e5 {[%clk 0:00:46.8]} 24... Be7 {[%clk 0:00:02]} 25.
cxd4 {[%clk 0:00:46.8]} 25... Rad8 {[%clk 0:00:02.9]} 26. Qxa7 {[%clk
0:00:45.9]} 26... c5 {[%clk 0:00:02.9]} 27. d5 {[%clk 0:00:45.1]} 27... Bf8
{[%clk 0:00:02.8]} 28. d6 {[%clk 0:00:41.7]} 28... f6 {[%clk 0:00:02.9]} 29.
Qxb6 {[%clk 0:00:40.1]} 29... fxe5 {[%clk 0:00:03.1]} 30. Nxe5 {[%clk
0:00:40.1]} 30... Qe6 {[%clk 0:00:03.2]} 31. Nf3 {[%clk 0:00:10.8]} 31... Rxd6
{[%clk 0:00:03.6]} 32. Qxd6 {[%clk 0:00:11]} 32... Qxd6 {[%clk 0:00:04]} 33.
Rxd6 {[%clk 0:00:10.9]} 33... Rxe1+ {[%clk 0:00:04.9]} 34. Nxe1 {[%clk
0:00:11.6]} 34... Bxd6 {[%clk 0:00:05.6]} 35. Kf1 {[%clk 0:00:11.3]} 35... c4
{[%clk 0:00:05.9]} 36. Ke2 {[%clk 0:00:10.1]} 36... Nf6 {[%clk 0:00:06.8]} 37.
Kf3 {[%clk 0:00:08.6]} 37... Bb4 {[%clk 0:00:05.8]} 38. Nc2 {[%clk 0:00:08.3]}
38... Ba5 {[%clk 0:00:05.7]} 39. Ne3 {[%clk 0:00:08.4]} 39... Kf7 {[%clk
0:00:06.3]} 40. Nxc4 {[%clk 0:00:08.3]} 40... Bb4 {[%clk 0:00:06.8]} 41. Ne5+
{[%clk 0:00:07.9]} 41... Ke6 {[%clk 0:00:07.2]} 42. Nd3 {[%clk 0:00:08.8]} 42...
Bc3 {[%clk 0:00:07.4]} 43. a4 {[%clk 0:00:08.4]} 43... Kd5 {[%clk 0:00:08.1]}
44. Nf4+ {[%clk 0:00:07.1]} 44... Kc4 {[%clk 0:00:08.5]} 45. Ne6 {[%clk
0:00:07.4]} 45... Nd7 {[%clk 0:00:08.9]} 46. Be3 {[%clk 0:00:06.7]} 46... g6
{[%clk 0:00:08.3]} 47. Ke4 {[%clk 0:00:06.5]} 47... Kb3 {[%clk 0:00:08.6]} 48.
Kd5 {[%clk 0:00:05.4]} 48... Kxa4 {[%clk 0:00:08.9]} 49. Kd6 {[%clk 0:00:06]}
49... Nf6 {[%clk 0:00:09.6]} 50. Ke7 {[%clk 0:00:05.5]} 50... Ng4 {[%clk
0:00:10.3]} 51. h3 {[%clk 0:00:05.2]} 51... Ne5 {[%clk 0:00:07.9]} 52. Nf8
{[%clk 0:00:04.5]} 52... h5 {[%clk 0:00:07.4]} 53. Ke6 {[%clk 0:00:04.5]} 53...
Kb5 {[%clk 0:00:07.6]} 54. f4 {[%clk 0:00:04.3]} 54... Nc4 {[%clk 0:00:06.3]}
55. Bf2 {[%clk 0:00:04.7]} 55... Nd6 {[%clk 0:00:01.9]} 56. Kxd6 {[%clk
0:00:03.7]} 56... Bb4+ {[%clk 0:00:02.8]} 57. Ke6 {[%clk 0:00:04.3]} 57... Bxf8
{[%clk 0:00:03.7]} 58. Kf7 {[%clk 0:00:05.1]} 58... Bc5 {[%clk 0:00:04.1]} 59.
Bxc5 {[%clk 0:00:04.5]} 59... g5 {[%clk 0:00:05]} 60. Kg6 {[%clk 0:00:05.4]}
60... gxf4 {[%clk 0:00:05.9]} 61. Bd6 {[%clk 0:00:05.3]} 61... f3 {[%clk
0:00:06.1]} 62. gxf3 {[%clk 0:00:05.8]} 1-0